fUST/lending_fUST_20241211
["ID","MTS","AMOUNT","RATE_DAILY","PERIOD"]
[344921697,1733880647567,-500.0,0.00029863,7]
[344921699,1733880647576,-500.0,0.00029863,7]
[344921701,1733880647585,-500.0,0.00029863,7]
[344921703,1733880647595,-500.0,0.00029863,7]
[344921705,1733880647605,-500.0,0.00029863,7]
[344921707,1733880647614,-500.0,0.00029863,7]
[344921709,1733880647623,-500.0,0.00029863,7]
[344921711,1733880647633,-507.11838912,0.00029863,7]
[344921713,1733880647642,-500.0,0.00029863,7]
[344921715,1733880647651,-500.0,0.00029863,7]
[344921717,1733880647661,-500.0,0.00029863,7]
[344921719,1733880647671,-500.0,0.00029863,7]
[344921721,1733880647680,-500.0,0.00029863,7]
[344921723,1733880647689,-500.0,0.00029863,7]
[344921725,1733880647699,-339.44950496,0.00029863,7]
[344921727,1733880647709,-500.0,0.00029863,7]
[344921729,1733880647719,-502.4307005,0.00029863,7]
[344921731,1733880647729,-500.0,0.00029863,7]
[344921733,1733880647739,-370.84843094,0.00029863,7]
[344921734,1733880647752,-500.0,0.00029863,7]
[344921735,1733880647761,-500.0,0.00029863,7]
[344921736,1733880647771,-500.0,0.00029863,2]
[344921737,1733880647780,-500.0,0.00029863,7]
[344921738,1733880647790,-500.0,0.00029863,2]
[344921739,1733880647799,-500.0,0.00029863,7]
[344921740,1733880647810,-276.35781052,0.00029863,2]
[344921741,1733880647820,-500.0,0.00029863,7]
[344921742,1733880647830,-520.62405632,0.00029863,7]
[344921743,1733880647839,-500.0,0.00029863,7]
[344921744,1733880647849,-212.88309704,0.00029863,7]
[344921745,1733880647859,-500.0,0.00029863,7]
[344921746,1733880647869,-500.0,0.00029863,7]
[344921747,1733880647879,-500.0,0.00029863,7]
[344921748,1733880647889,-500.0,0.00029863,7]
[344921749,1733880647899,-500.0,0.00029863,7]
[344921750,1733880647909,-500.0,0.00029863,7]
[344921751,1733880647919,-500.0,0.00029863,7]
[344921752,1733880647929,-500.0,0.00029863,7]
[344921753,1733880647939,-500.0,0.00029863,7]
[344921754,1733880647948,-500.0,0.00029863,7]
[344921755,1733880647958,-500.0,0.00029863,7]
[344921756,1733880647968,-500.0,0.00029863,7]
[344921757,1733880647978,-500.0,0.00029863,7]
[344921758,1733880647987,-500.0,0.00029863,7]
[344921759,1733880648001,-500.0,0.00029863,7]
[344921760,1733880648011,-500.0,0.00029863,7]
[344921761,1733880648021,-335.36776799,0.00029863,7]
[344921762,1733880648031,-500.0,0.00029863,7]
[344921763,1733880648042,-500.0,0.00029863,7]
[344921764,1733880648051,-500.0,0.00029863,7]
[344921765,1733880648061,-500.0,0.00029863,7]
[344921766,1733880648071,-452.64289817,0.00029863,7]
[344921767,1733880648082,-500.0,0.00029863,7]
[344921768,1733880648092,-500.0,0.00029863,7]
[344921769,1733880648102,-2664.35,0.00029863,7]
[344921770,1733880648112,-500.0,0.00029863,7]
[344921771,1733880648122,-500.0,0.00029863,7]
[344921772,1733880648131,-2664.35,0.00029863,7]
[344921773,1733880648141,-500.0,0.00029863,7]
[344921774,1733880648151,-348.5615872,0.00029863,7]
[344921775,1733880648161,-2664.35,0.00029863,7]
[344921776,1733880648170,-500.0,0.00029863,7]
[344921777,1733880648180,-2664.35,0.00029863,7]
[344921778,1733880648190,-500.0,0.00029863,7]
[344921779,1733880648206,-2664.35,0.00029863,7]
[344921780,1733880648216,-500.0,0.00029863,7]
[344921781,1733880648225,-2664.35,0.00029863,7]
[344921782,1733880648235,-500.0,0.00029863,7]
[344921783,1733880648251,-2664.35,0.00029863,7]
[344921784,1733880648261,-500.0,0.00029863,7]
[344921785,1733880648272,-2664.35,0.00029863,7]
[344921786,1733880648282,-500.0,0.00029863,7]
[344921787,1733880648292,-2664.35,0.00029863,7]
[344921788,1733880648302,-500.0,0.00029863,7]
[344921789,1733880648312,-2664.35,0.00029863,7]
[344921790,1733880648322,-500.0,0.00029863,7]
[344921791,1733880648332,-526.04406256,0.00029863,7]
[344921792,1733880648342,-2664.35,0.00029863,7]
[344921793,1733880648352,-500.0,0.00029863,7]
[344921794,1733880648362,-500.0,0.00029863,7]
[344921795,1733880648372,-2664.35,0.00029863,7]
[344921796,1733880648383,-500.0,0.00029863,7]
[344921797,1733880648393,-500.0,0.00029863,7]
[344921798,1733880648403,-2664.35,0.00029863,7]
[344921799,1733880648416,-500.0,0.00029863,7]
[344921800,1733880648426,-2664.35,0.00029863,7]
[344921801,1733880648435,-2664.35,0.00029863,7]
[344921802,1733880648445,-500.0,0.00029863,7]
[344921803,1733880648455,-2664.35,0.00029863,7]
[344921804,1733880648465,-495.2328551,0.00029863,7]
[344921805,1733880648475,-2664.35,0.00029863,7]
[344921806,1733880648484,-2664.35,0.00029863,7]
[344921807,1733880648497,-2664.35,0.00029863,7]
[344921808,1733880648510,-2664.35,0.00029863,7]
[344921809,1733880648520,-2664.35,0.00029863,7]
[344921810,1733880648534,-505.27761128,0.00029863,7]
[344921811,1733880648544,-2664.35,0.00029863,7]
[344921812,1733880648554,-2664.35,0.00029863,7]
[344921813,1733880648563,-2664.55246266,0.00029863,7]
[344921814,1733880648573,-501.17477867,0.00029863,7]
[344921815,1733880648583,-360.46399812,0.00029863,7]
[344921816,1733880648593,-500.0,0.00029863,7]
[344921817,1733880648603,-500.0,0.00029863,7]
[344921818,1733880648613,-746.56593515,0.00029867,2]
[344921819,1733880648622,-302.75782099,0.0002987,2]
[344921820,1733880648632,-160.0,0.00029872,10]
[344921821,1733880648642,-266.79229971,0.00029873,5]
[344921822,1733880648651,-160.0,0.00029873,5]
[344921823,1733880648661,-160.5,0.00029873,5]
[344921824,1733880648671,-500.0,0.00029873,5]
[344921825,1733880648681,-500.0,0.00029873,5]
[344921826,1733880648691,-500.0,0.00029873,5]
[344921827,1733880648701,-500.0,0.00029873,2]
[344921828,1733880648711,-2499.999999,0.00029886,2]
[344921829,1733880648722,-746.56593515,0.00029888,2]
[344921830,1733880648731,-158.48867599,0.000299,7]
[344921831,1733880648741,-449.991,0.000299,7]
[344921832,1733880648757,-300.0,0.000299,14]
[344921833,1733880648767,-151.0,0.000299,7]
[344921834,1733880648777,-527.368092,0.000299,7]
[344921835,1733880648786,-527.368092,0.000299,7]
[344921836,1733880648796,-298.61,0.000299,31]
[344921837,1733880648805,-298.61,0.000299,31]
[344921838,1733880648816,-298.61,0.000299,31]
[344921839,1733880648825,-298.61,0.000299,31]
[344921840,1733880648835,-298.61,0.000299,31]
[344921841,1733880648844,-298.61,0.000299,31]
[344921842,1733880648854,-298.61,0.000299,31]
[344921843,1733880648864,-298.61,0.000299,31]
[344921844,1733880648873,-298.61,0.000299,31]
[344921845,1733880648883,-298.61,0.000299,31]
[344921846,1733880648892,-298.61,0.000299,31]
[344921847,1733880648902,-298.61,0.000299,31]
[344921848,1733880648912,-746.56593515,0.00029908,2]
[344921849,1733880648921,-746.56593515,0.00029929,2]
[344921850,1733880648931,-151.0,0.00029941,15]
[344921851,1733880648940,-150.0,0.00029944,2]
[344921852,1733880648951,-532.0,0.00029944,2]
[344921853,1733880648961,-2369.0,0.00029944,2]
[344921854,1733880648971,-2163.0,0.00029944,2]
[344921855,1733880648983,-182.402,0.00029944,2]
[344921856,1733880648993,-159.081918,0.00029944,7]
[344921857,1733880649008,-159.081918,0.00029944,7]
[344921858,1733880649018,-746.56593515,0.0002995,2]
[344921859,1733880649029,-174.38694961,0.0002995,2]
[344921860,1733880649039,-528.86922726,0.00029965,2]
[344921861,1733880649049,-6682.43139176,0.0002999,2]
[344921862,1733880649059,-2500.0,0.00029991,3]
[344921863,1733880649069,-306.09,0.0003,120]
[344921864,1733880649079,-1643.42050905,0.0003,2]
[344921865,1733880649090,-1500.0,0.0003,2]
[344921866,1733880649100,-23341.57710382,0.0003,2]
[344921867,1733880649109,-5811.13875057,0.0003,2]
[344921868,1733880649119,-187.0,0.0003,2]
[344921869,1733880649129,-2000.0,0.0003,2]
[344921870,1733880649139,-151.0,0.0003,120]
[344921871,1733880649149,-151.0,0.0003,120]
[344921872,1733880649159,-26147.99934043,0.0003,15]
[344921873,1733880649169,-160.0,0.0003,2]
[344921874,1733880649180,-5836.8081672,0.0003,7]
[344921875,1733880649190,-156.0915,0.0003,2]
[344921876,1733880649201,-449.991,0.0003,7]
[344921877,1733880649211,-187.5,0.0003,2]
[344921878,1733880649221,-151.0,0.0003,7]
[344921879,1733880649231,-2500.0,0.0003,3]
[344921880,1733880649242,-801.47,0.0003,2]
[344921881,1733880649255,-527.368092,0.0003,7]
[344921882,1733880649266,-527.368092,0.0003,7]
[344921883,1733880649276,-232.308636,0.0003,7]
[344921884,1733880649286,-151.0,0.0003,7]
[344921885,1733880649296,-151.0,0.0003,7]
[344921886,1733880649306,-159.081918,0.0003,7]
[344921887,1733880649317,-159.081918,0.0003,7]
[344921888,1733880649329,-298.61,0.0003,31]
[344921889,1733880649339,-298.61,0.0003,31]
[344921890,1733880649348,-298.61,0.0003,31]
[344921891,1733880649357,-298.61,0.0003,31]
[344921892,1733880649367,-298.61,0.0003,31]
[344921893,1733880649376,-298.61,0.0003,31]
[344921894,1733880649386,-298.61,0.0003,31]
[344921895,1733880649395,-298.61,0.0003,31]
[344921896,1733880649405,-298.61,0.0003,31]
[344921897,1733880649414,-298.61,0.0003,31]
[344921898,1733880649423,-298.61,0.0003,31]
[344921899,1733880649432,-298.61,0.0003,31]
[344921900,1733880649442,-298.61,0.0003,31]
[344921901,1733880649451,-298.61,0.0003,31]
[344921902,1733880649460,-298.61,0.0003,31]
[344921903,1733880649469,-298.61,0.0003,31]
[344921904,1733880649479,-298.61,0.0003,31]
[344921905,1733880649488,-298.61,0.0003,31]
[344921906,1733880649500,-298.61,0.0003,31]
[344921907,1733880649509,-298.61,0.0003,31]
[344921908,1733880649519,-298.61,0.0003,31]
[344921909,1733880649528,-298.61,0.0003,31]
[344921910,1733880649537,-298.61,0.0003,31]
[344921911,1733880649547,-298.61,0.0003,31]
[344921912,1733880649556,-8096.79853135,0.0003,120]
[344921913,1733880649565,-151.0,0.0003,7]
[344921914,1733880649575,-500.0,0.0003,32]
[344921915,1733880649584,-1000.0,0.0003,2]
[344921916,1733880649593,-314.51361,0.0003,7]
[344921917,1733880649603,-314.51361,0.0003,7]
[344921918,1733880649612,-206.0,0.0003,2]
[344921919,1733880649621,-294.52438556,0.0003003,2]
[344921920,1733880649799,-1348.3239827,0.0003003,2]
[344921921,1733880649835,-500.0,0.00029863,7]
[344921922,1733880649844,-500.0,0.00029863,7]
[344921923,1733880649853,-158.19738134,0.00029863,7]
[344921924,1733880649862,-386.14129643,0.00029863,7]
[344921925,1733880649872,-11326.84719865,0.0003003,2]
[344921932,1733881211801,167.986438,0.00013973,2]
[344921977,1733881832114,-500.0,0.00027397,7]
[344921979,1733881832124,-305.7347312,0.00028007,2]
[344921980,1733881832133,-197.9589782,0.00028367,2]
[344921982,1733881832142,-551.631,0.0002853,2]
[344921984,1733881832152,-713.9320986,0.00028579,2]
[344921986,1733881832161,-205.138104,0.00028658,2]
[344921989,1733881832170,-500.0,0.00028767,9]
[344921991,1733881832180,-306.80557665,0.00029,2]
[344921993,1733881832190,-302.72757545,0.00029,2]
[344921994,1733881832199,-302.72757545,0.0002929,2]
[344921996,1733881832207,-302.6065933,0.0002958,2]
[344921998,1733881832216,-153.0,0.00029706,2]
[344922000,1733881832226,-150.1303642,0.00029763,2]
[344922002,1733881832235,-666.0,0.00029763,2]
[344922004,1733881832245,-150.13036416,0.00029789,2]
[344922006,1733881832254,-300.0,0.00029803,2]
[344922008,1733881832263,-292.0,0.00029804,2]
[344922010,1733881832272,-300.0,0.00029804,2]
[344922012,1733881832281,-12193.90737132,0.00029805,2]
[344922014,1733881832290,-150.13036416,0.00029815,2]
[344922017,1733881832300,-150.13036416,0.00029841,2]
[344922018,1733881832309,-337.498111,0.00029863,7]
[344922020,1733881832319,-337.498111,0.00029863,7]
[344922022,1733881832331,-337.498111,0.00029863,7]
[344922025,1733881832340,-337.498111,0.00029863,7]
[344922027,1733881832349,-337.498111,0.00029863,7]
[344922028,1733881832359,-337.498111,0.00029863,7]
[344922030,1733881832368,-337.498111,0.00029863,7]
[344922032,1733881832377,-337.498111,0.00029863,7]
[344922035,1733881832387,-337.498111,0.00029863,7]
[344922036,1733881832396,-337.498111,0.00029863,7]
[344922039,1733881832405,-337.498111,0.00029863,7]
[344922041,1733881832414,-337.498111,0.00029863,7]
[344922042,1733881832423,-337.498111,0.00029863,7]
[344922044,1733881832432,-337.498111,0.00029863,7]
[344922046,1733881832441,-502.4921007,0.00029863,7]
[344922048,1733881832451,-337.498111,0.00029863,7]
[344922050,1733881832460,-337.498111,0.00029863,7]
[344922052,1733881832469,-502.60971687,0.00029863,7]
[344922054,1733881832479,-502.37350631,0.00029863,7]
[344922056,1733881832488,-151.0,0.00029863,7]
[344922058,1733881832497,-284.548763,0.00029863,7]
[344922060,1733881832506,-500.0,0.00029863,7]
[344922062,1733881832515,-500.0,0.00029863,7]
[344922064,1733881832524,-507.93800061,0.00029863,7]
[344922066,1733881832533,-161.51936769,0.00029863,7]
[344922068,1733881832543,-500.66364127,0.00029863,7]
[344922070,1733881832552,-502.57922319,0.00029863,7]
[344922072,1733881832562,-210.43330639,0.00029863,7]
[344922075,1733881832575,-412.87537619,0.00029863,7]
[344922077,1733881832584,-505.33017023,0.00029863,7]
[344922079,1733881832594,-500.0,0.00029863,7]
[344922080,1733881832603,-508.20387602,0.00029863,7]
[344922083,1733881832617,-500.43700657,0.00029863,7]
[344922085,1733881832626,-500.0,0.00029863,7]
[344922087,1733881832635,-505.20853031,0.00029863,7]
[344922088,1733881832644,-510.66452055,0.00029863,7]
[344922091,1733881832655,-303.70869727,0.00029863,7]
[344922093,1733881832665,-502.83184568,0.00029863,7]
[344922094,1733881832674,-500.0,0.00029863,7]
[344922097,1733881832685,-501.74652192,0.00029863,7]
[344922099,1733881832695,-523.40700968,0.00029863,7]
[344922101,1733881832705,-506.8055361,0.00029863,7]
[344922103,1733881832714,-508.36359054,0.00029863,7]
[344922105,1733881832723,-508.86956073,0.00029863,7]
[344922107,1733881832732,-507.35375229,0.00029863,7]
[344922109,1733881832742,-500.0,0.00029863,7]
[344922110,1733881832751,-500.0,0.00029863,7]
[344922113,1733881832761,-500.0,0.00029863,7]
[344922115,1733881832771,-500.0,0.00029863,7]
[344922117,1733881832780,-500.83774816,0.00029863,7]
[344922119,1733881832790,-500.0,0.00029863,7]
[344922121,1733881832799,-500.0,0.00029863,7]
[344922122,1733881832808,-500.0,0.00029863,7]
[344922125,1733881832818,-341.15222779,0.00029863,7]
[344922127,1733881832831,-500.0,0.00029863,7]
[344922129,1733881832840,-574.96493873,0.00029863,7]
[344922131,1733881832849,-500.0,0.00029863,7]
[344922133,1733881832859,-615.71,0.00029863,7]
[344922135,1733881832868,-500.0,0.00029863,7]
[344922136,1733881832877,-500.0,0.00029863,7]
[344922139,1733881832886,-629.4165272,0.00029863,7]
[344922141,1733881832896,-520.60445722,0.00029863,7]
[344922142,1733881832906,-500.0,0.00029863,7]
[344922145,1733881832915,-376.05896981,0.00029863,7]
[344922146,1733881832925,-504.11061587,0.00029863,7]
[344922149,1733881832934,-504.1805027,0.00029863,7]
[344922151,1733881832943,-502.51719367,0.00029863,7]
[344922153,1733881832954,-500.0,0.00029863,7]
[344922154,1733881832963,-500.0,0.00029863,7]
[344922157,1733881832972,-500.0,0.00029863,7]
[344922159,1733881832982,-253.99131515,0.00029863,7]
[344922161,1733881832991,-503.0693155,0.00029863,7]
[344922163,1733881833000,-500.0,0.00029863,7]
[344922164,1733881833010,-338.48906262,0.00029863,7]
[344922167,1733881833019,-508.56809066,0.00029863,7]
[344922169,1733881833029,-501.08317276,0.00029863,7]
[344922170,1733881833039,-506.34706246,0.00029863,7]
[344922172,1733881833048,-500.0,0.00029863,7]
[344922174,1733881833058,-500.0,0.00029863,7]
[344922176,1733881833068,-524.59025848,0.00029863,7]
[344922178,1733881833080,-177.9770565,0.00029863,7]
[344922310,1733881838344,-322.0229435,0.00029863,7]
[344922311,1733881838354,-299.30296024,0.00029863,7]
[344922312,1733881838363,-500.0,0.00029863,7]
[344922313,1733881838373,-503.43698895,0.00029863,7]
[344922314,1733881838382,-215.23710731,0.00029863,7]
[344922320,1733881840016,-284.76289269,0.00029863,7]
[344922321,1733881840025,-48.15699255,0.00029863,7]
[344922324,1733881840037,-306.316,0.00029863,7]
[344922596,1733882106258,167.340008,0.00013973,2]
[344922597,1733882184670,181.210463,0.000262,60]
[344922628,1733883032302,-173.274086,0.00025,2]
[344922629,1733883032312,-184.261553,0.00025996,2]
[344922631,1733883032323,-5371.66128959,0.00026,5]
[344922632,1733883032332,-300.0,0.00026479,2]
[344922633,1733883032342,-300.0,0.00026479,2]
[344922634,1733883032351,-11368.6923797,0.0002648,2]
[344922635,1733883032361,-1283.5085072,0.00027073,2]
[344922636,1733883032370,-158.21589267,0.000279,2]
[344922637,1733883032381,-42080.6199477,0.00028,2]
[344922638,1733883032391,-326.56558664,0.00028,2]
[344922639,1733883032401,-38976.25258274,0.00028,2]
[344922640,1733883032410,-24095.08554292,0.00028,3]
[344922641,1733883032419,-174.0747313,0.00028056,2]
[344922642,1733883032429,-160.0,0.00028201,3]
[344922643,1733883032438,-158.21589264,0.0002831,2]
[344922644,1733883032447,-157.77477274,0.00028325,2]
[344922645,1733883032457,-552.953,0.0002853,2]
[344922646,1733883032466,-420.0,0.00028642,2]
[344922647,1733883032476,-158.21589264,0.0002872,2]
[344922648,1733883032486,-420.0,0.00029127,2]
[344922649,1733883032495,-302.75782099,0.00029595,2]
[344922650,1733883032510,-601.66,0.000298,30]
[344922651,1733883032520,-150.0,0.000298,2]
[344922652,1733883032529,-184.261553,0.00029843,2]
[344922653,1733883032538,-500.0,0.00029862,7]
[344922654,1733883032548,-227.44735068,0.00029862,2]
[344922655,1733883032558,-214.80284497,0.00029862,2]
[344922656,1733883032567,-500.0,0.00029862,2]
[344922657,1733883032577,-500.0,0.00029862,2]
[344922658,1733883032586,-500.0,0.00029862,2]
[344922659,1733883032596,-500.0,0.00029862,2]
[344922660,1733883032606,-500.0,0.00029862,2]
[344922661,1733883032616,-500.0,0.00029862,2]
[344922662,1733883032626,-500.0,0.00029862,2]
[344922663,1733883032635,-500.0,0.00029862,2]
[344922664,1733883032644,-500.0,0.00029862,2]
[344922665,1733883032654,-389.03127569,0.00029862,2]
[344922666,1733883032663,-500.0,0.00029862,2]
[344922667,1733883032673,-500.0,0.00029862,2]
[344922668,1733883032683,-500.0,0.00029862,2]
[344922669,1733883032693,-501.17531752,0.00029862,2]
[344922670,1733883032702,-624.58315737,0.00029863,7]
[344922671,1733883032712,-180.87993325,0.00029863,7]
[344922672,1733883032722,-501.56454199,0.00029863,7]
[344922673,1733883032731,-504.3231129,0.00029863,7]
[344922674,1733883032740,-548.81493382,0.00029863,7]
[344922675,1733883032750,-503.94115843,0.00029863,7]
[344922676,1733883032765,-502.4307005,0.00029863,7]
[344922677,1733883032775,-501.43370239,0.00029863,7]
[344922678,1733883032785,-500.0,0.00029863,7]
[344922679,1733883032794,-500.0,0.00029863,7]
[344922680,1733883032803,-500.0,0.00029863,7]
[344922681,1733883032813,-500.0,0.00029863,7]
[344922682,1733883032933,-506.97281113,0.00029863,7]
[344922683,1733883032964,-394.74161081,0.00029863,7]
[344922684,1733883032974,-505.90831109,0.00029863,7]
[344922685,1733883032985,-340.63507551,0.00029863,7]
[344922686,1733883032995,-523.28033351,0.00029863,7]
[344922687,1733883033007,-501.17477867,0.00029863,7]
[344922688,1733883033017,-500.0,0.00029863,7]
[344922689,1733883033027,-500.0,0.00029863,7]
[344922690,1733883033038,-500.0,0.00029863,7]
[344922691,1733883033048,-500.0,0.00029863,7]
[344922692,1733883033058,-500.0,0.00029863,7]
[344922693,1733883033068,-500.0,0.00029863,7]
[344922694,1733883033078,-510.73944694,0.00029863,7]
[344922695,1733883033088,-506.34295755,0.00029863,7]
[344922696,1733883033098,-525.93999709,0.00029863,7]
[344922697,1733883033108,-500.0,0.00029863,7]
[344922698,1733883033118,-615.71,0.00029863,7]
[344922699,1733883033128,-500.0,0.00029863,7]
[344922700,1733883033138,-502.29901988,0.00029863,7]
[344922701,1733883033147,-500.0,0.00029863,7]
[344922702,1733883033157,-502.21644562,0.00029863,7]
[344922703,1733883033167,-547.01106504,0.00029863,7]
[344922704,1733883033177,-500.0,0.00029863,7]
[344922705,1733883033187,-500.0,0.00029863,7]
[344922706,1733883033197,-500.0,0.00029863,7]
[344922707,1733883033207,-517.17555733,0.00029863,7]
[344922708,1733883033216,-506.57458966,0.00029863,7]
[344922709,1733883033226,-502.43000057,0.00029863,7]
[344922710,1733883033236,-190.42729759,0.00029863,7]
[344922711,1733883033246,-512.93269671,0.00029863,7]
[344922712,1733883033259,-507.51375777,0.00029863,7]
[344922713,1733883033270,-502.97367585,0.00029863,7]
[344922714,1733883033280,-504.06997914,0.00029863,7]
[344922715,1733883033291,-500.0,0.00029863,7]
[344922716,1733883033301,-500.0,0.00029863,7]
[344922717,1733883033310,-500.0,0.00029863,7]
[344922718,1733883033320,-465.17439249,0.00029863,7]
[344922719,1733883033332,-500.0,0.00029863,7]
[344922720,1733883033342,-500.0,0.00029863,7]
[344922721,1733883033352,-500.0,0.00029863,7]
[344922722,1733883033362,-500.0,0.00029863,7]
[344922723,1733883033372,-607.28,0.00029863,7]
[344922724,1733883033382,-504.85331331,0.00029863,7]
[344922725,1733883033392,-500.0,0.00029863,7]
[344922726,1733883033402,-337.63810327,0.00029863,7]
[344922727,1733883033412,-511.7842113,0.00029863,7]
[344922728,1733883033421,-500.82061142,0.00029863,7]
[344922729,1733883033431,-506.67756564,0.00029863,7]
[344922730,1733883033441,-500.0,0.00029863,7]
[344922731,1733883033451,-170.11911782,0.00029863,7]
[344922732,1733883033460,-500.44634138,0.00029863,7]
[344922733,1733883033470,-503.53784943,0.00029863,7]
[344922734,1733883033479,-511.42459632,0.00029863,7]
[344922735,1733883033488,-500.0,0.00029863,7]
[344922736,1733883033498,-500.0,0.00029863,7]
[344922737,1733883033510,-506.52257379,0.00029863,7]
[344922738,1733883033519,-501.73903722,0.00029863,7]
[344922739,1733883033529,-507.13412166,0.00029863,7]
[344922740,1733883033539,-513.84356493,0.00029863,7]
[344922741,1733883033550,-833.78,0.00029863,7]
[344922742,1733883033560,-833.78,0.00029863,7]
[344922743,1733883033570,-833.78,0.00029863,7]
[344922744,1733883033579,-833.78,0.00029863,7]
[344922745,1733883033590,-833.78,0.00029863,7]
[344922746,1733883033599,-833.78,0.00029863,7]
[344922747,1733883033609,-833.78,0.00029863,7]
[344922748,1733883033619,-833.78,0.00029863,7]
[344922749,1733883033629,-504.94595576,0.00029863,7]
[344922750,1733883033638,-501.48157003,0.00029863,7]
[344922751,1733883033647,-500.0,0.00029863,7]
[344922752,1733883033658,-501.09979205,0.00029863,7]
[344922753,1733883033668,-500.0,0.00029863,7]
[344922754,1733883033678,-500.0,0.00029863,7]
[344922755,1733883033688,-373.02648508,0.00029863,7]
[344922756,1733883033698,-355.59484163,0.00029863,7]
[344922757,1733883033707,-536.87166001,0.00029863,7]
[344922758,1733883033717,-387.59799536,0.00029863,7]
[344922759,1733883033727,-504.40621357,0.00029863,7]
[344922760,1733883033737,-510.80955842,0.00029863,7]
[344922761,1733883033747,-501.88394975,0.00029863,7]
[344922762,1733883033760,-501.30017457,0.00029863,7]
[344922763,1733883033770,-500.0,0.00029863,7]
[344922764,1733883033780,-500.0,0.00029863,7]
[344922765,1733883033789,-500.0,0.00029863,7]
[344922766,1733883033799,-500.0,0.00029863,7]
[344922767,1733883033810,-299.4062919,0.00029863,7]
[344922768,1733883033820,-503.731958,0.00029863,7]
[344922769,1733883033830,-507.90410777,0.00029863,7]
[344922770,1733883033840,-500.0,0.00029863,7]
[344922771,1733883033850,-500.0,0.00029863,7]
[344922772,1733883033860,-500.0,0.00029863,7]
[344922773,1733883033870,-500.0,0.00029863,7]
[344922774,1733883033879,-500.0,0.00029863,7]
[344922775,1733883033889,-500.0,0.00029863,7]
[344922776,1733883033899,-500.0,0.00029863,7]
[344922777,1733883033908,-500.0,0.00029863,7]
[344922778,1733883033918,-219.52917608,0.00029863,7]
[344922779,1733883033928,-500.0,0.00029863,7]
[344922780,1733883033938,-521.38987631,0.00029863,7]
[344922781,1733883033948,-502.34371777,0.00029863,7]
[344922782,1733883033959,-500.0,0.00029863,7]
[344922783,1733883033971,-500.0,0.00029863,7]
[344922784,1733883033982,-504.18365171,0.00029863,7]
[344922785,1733883033992,-500.0,0.00029863,7]
[344922786,1733883034004,-500.0,0.00029863,7]
[344922787,1733883034014,-502.8251881,0.00029863,7]
[344922788,1733883034024,-500.0,0.00029863,7]
[344922789,1733883034033,-500.0,0.00029863,7]
[344922790,1733883034044,-500.0,0.00029863,7]
[344922791,1733883034054,-500.0,0.00029863,7]
[344922792,1733883034064,-506.56593502,0.00029863,7]
[344922793,1733883034074,-503.39547416,0.00029863,7]
[344922794,1733883034083,-501.14461496,0.00029863,7]
[344922795,1733883034093,-505.62857263,0.00029863,7]
[344922796,1733883034103,-500.0,0.00029863,7]
[344922797,1733883034113,-510.69850272,0.00029863,7]
[344922798,1733883034123,-500.0,0.00029863,7]
[344922799,1733883034133,-511.52337047,0.00029863,7]
[344922800,1733883034143,-512.03027674,0.00029863,7]
[344922801,1733883034153,-502.29104376,0.00029863,7]
[344922802,1733883034163,-500.0,0.00029863,7]
[344922803,1733883034173,-503.86552777,0.00029863,7]
[344922804,1733883034183,-504.01931454,0.00029863,7]